fUSD/lending_fUSD_20240205
["ID","MTS","AMOUNT","RATE_DAILY","PERIOD"]
[313294461,1707100238632,-255.05584052,0.00037043,3]
[313294477,1707100240925,-800.05142995,0.00037043,3]
[313294478,1707100240935,-151.14314891,0.00037521,2]
[313294479,1707100240944,-300.54042333,0.00037798,2]
[313294480,1707100240980,-259.30191203,0.00037798,2]
[313294481,1707100240990,-298.01919516,0.00037799,2]
[313294482,1707100241038,-890.17,0.00037799,2]
[313294483,1707100241094,-56532.98952276,0.00037799,2]
[313294484,1707100241103,-57064.8767,0.000378,2]
[313294485,1707100241113,-784.1163,0.000378,2]
[313294486,1707100241122,-800.0,0.0003789,2]
[313294487,1707100241131,-415.49829452,0.00037897,4]
[313294488,1707100241140,-151234.29134585,0.00037897,2]
[313294489,1707100241149,-1271.1509722,0.00037898,4]
[313294490,1707100241158,-155.39490838,0.00037898,4]
[313294491,1707100241168,-949.95162327,0.00037898,4]
[313294492,1707100241177,-33664.52868708,0.00037898,4]
[313294493,1707100241185,-156.02928213,0.00037899,4]
[313294494,1707100241195,-347.47509004,0.00037899,4]
[313294495,1707100241204,-4590.93294784,0.00037899,4]
[313294496,1707100241213,-533.30201527,0.00037899,2]
[313294497,1707100241222,-411.01902829,0.00037899,2]
[313294498,1707100241231,-616.52854244,0.00037899,2]
[313294499,1707100241240,-5638.26868636,0.000379,2]
[313294500,1707100241249,-223.34002621,0.000379,4]
[313294501,1707100241258,-500.0,0.000379,2]
[313294502,1707100241268,-2234.08171894,0.00038,2]
[313294503,1707100241277,-6728.43359848,0.00038,2]
[313294504,1707100241286,-173.54,0.00038068,2]
[313294505,1707100241295,-187.84006644,0.00038356,2]
[313294506,1707100241305,-150.0,0.00038356,2]
[313294507,1707100241314,-210.43,0.00038562,2]
[313294508,1707100241323,-1809.6,0.00038796,5]
[313294509,1707100241333,-21428.89231841,0.000388,4]
[313294510,1707100241342,-435.87377309,0.0003888,2]
[313294511,1707100241350,-4022.05534833,0.000389,15]
[313294512,1707100241359,-435.87377309,0.00038919,2]
[313294513,1707100241369,-205.54,0.0003896,2]
[313294514,1707100241378,-404.41893006,0.0003898,2]
[313294515,1707100241387,-1433.61374358,0.00039,2]
[313294516,1707100241396,-308.13874954,0.00039,40]
[313294517,1707100241406,-1254.556963,0.00039,5]
[313294518,1707100241414,-153.49106033,0.00039,120]
[313294519,1707100241423,-150.0,0.00039366,2]
[313294520,1707100241433,-1922.57512158,0.000395,9]
[313294521,1707100241442,-180.0,0.00039725,2]
[313294522,1707100241451,-2000.0,0.000399,4]
[313294523,1707100241461,-210.0,0.000399,2]
[313294524,1707100241471,-1893.3533,0.000399,120]
[313294525,1707100241480,-300.0,0.00039989,2]
[313294526,1707100241489,-307.93812864,0.00039989,2]
[313294527,1707100241499,-1080.68507351,0.0004,4]
[313294528,1707100241508,-54488.91732862,0.0004,4]
[313294529,1707100241517,-83704.56321334,0.0004,4]
[313294530,1707100241529,-567.15621342,0.0004,4]
[313294531,1707100241539,-4390.00732164,0.0004,4]
[313294532,1707100241548,-1209.39547784,0.0004,4]
[313294533,1707100241557,-1689.37980109,0.0004,4]
[313294534,1707100241568,-191.25630105,0.0004,2]
[313294535,1707100241577,-210.51526324,0.0004,2]
[313294536,1707100241586,-10798.53700548,0.0004,4]
[313294537,1707100241595,-33908.25457791,0.0004,4]
[313294538,1707100241606,-155.47062229,0.0004,4]
[313294539,1707100241616,-760.0,0.0004,30]
[313294540,1707100241625,-77210.75267232,0.0004,4]
[313294541,1707100241633,-10000.00000002,0.0004,30]
[313294542,1707100241642,-255.0,0.0004,12]
[313294543,1707100241651,-255.0,0.0004,12]
[313294544,1707100241661,-255.0,0.0004,12]
[313294545,1707100241670,-255.0,0.0004,12]
[313294546,1707100241679,-255.0,0.0004,12]
[313294547,1707100241688,-700.43445848,0.0004,10]
[313294548,1707100241697,-255.0,0.0004,12]
[313294549,1707100241706,-255.0,0.0004,12]
[313294550,1707100241715,-296.06016891,0.0004001,15]
[313294551,1707100241725,-1000.0,0.00040091,2]
[313294552,1707100241734,-150.0,0.00040375,2]
[313294553,1707100241743,-435.87377309,0.00040416,2]
[313294554,1707100241752,-205.54,0.00040603,2]
[313294555,1707100241761,-210.43,0.00040826,2]
[313294556,1707100241770,-594.0534405,0.00040885,13]
[313294557,1707100241779,-8089.32643947,0.00041,2]
[313294558,1707100241795,-1413.87826984,0.00041,2]
[313294559,1707100241848,-405.80371586,0.00041,2]
[313294560,1707100241861,-90.99157483,0.00041,2]
[313294561,1707100241870,-161.8064349,0.00041,2]
[313294562,1707100241899,-836.9735651,0.00041,2]
[313294563,1707100241908,-0.29847205,0.00041096,14]
[313294581,1707100243358,-153.17579295,0.00041096,14]
[313294582,1707100243367,-255.42135,0.00041096,14]
[313294583,1707100243376,-273.238691,0.00041096,14]
[313294584,1707100243385,-195.7529397,0.000411,2]
[313294586,1707100243396,-804.2470603,0.000411,2]
[313294588,1707100243405,-768.002405,0.000411,11]
[313294590,1707100243414,-898.15766335,0.000411,2]
[313294593,1707100243425,-565.596,0.000411,2]
[313294594,1707100243437,-536.24633665,0.000411,2]
[313294595,1707100243446,-1275.48173486,0.000411,2]
[313294596,1707100243457,-724.51826514,0.000411,2]
[313294597,1707100243466,-28.24727568,0.00041217,2]
[313294598,1707100243481,-169.83520762,0.00041217,2]
[313294599,1707100243490,-86.98027449,0.00041217,2]
[313294600,1707100243507,-197.15998591,0.00041217,2]
[313294601,1707100243516,-284.1402604,0.00041217,2]
[313294602,1707100243526,-503.93974569,0.000413,10]
[313294603,1707100243541,-1418.63537589,0.000413,10]
[313294604,1707100243550,-150.0,0.00041384,2]
[313294605,1707100243559,-21.78038022,0.000416,29]
[313294606,1707100243578,-931.13278959,0.000416,29]
[313294607,1707100243589,-47.08683019,0.000416,29]
[313294608,1707100243598,-859.82655729,0.000417,30]
[313294609,1707100243614,-140.17344271,0.000417,30]
[313294610,1707100243623,-173.5511,0.00041745,120]
[313294611,1707100243633,-415.953919,0.000418,32]
[313294612,1707100243642,-114.88520255,0.000418,2]
[313294613,1707100243687,-85.11479745,0.000418,2]
[313294615,1707100243697,-238.54802052,0.000418,30]
[313294694,1707100246438,-1644.50377348,0.000418,30]
[313294695,1707100246448,-1379.37327166,0.00041845,11]
[313294696,1707100246547,-4767.15382805,0.00041845,11]
[313294697,1707100246557,-14288.34600395,0.00041845,8]
[313294698,1707100246569,-6453.06385317,0.00041845,8]
[313294699,1707100246656,-205.50951415,0.00040999,2]
[313294700,1707100246665,-669.35729614,0.00041845,8]
[313294701,1707100312353,500.0,0.00023454,2]
[313294702,1707100330281,10000.0,0.00022501,2]
[313294703,1707100342575,7843.18,0.00022501,2]
[313294723,1707101432260,-155.0,0.00029977,2]
[313294724,1707101432278,-525.76793032,0.00029978,2]
[313294725,1707101432295,-1607.13626157,0.00029984,2]
[313294726,1707101432313,-500.0,0.0003,2]
[313294727,1707101432339,-1000.0,0.0003,2]
[313294728,1707101432352,-694.70392651,0.00034636,2]
[313294729,1707101432364,-211.0,0.00034639,2]
[313294730,1707101432384,-157.06296773,0.00034642,2]
[313294731,1707101432403,-158327.65886041,0.0003474,2]
[313294732,1707101432425,-3326.57079855,0.00034741,4]
[313294733,1707101432464,-150.0,0.00034741,2]
[313294734,1707101432483,-1652.19,0.00034741,2]
[313294735,1707101432506,-499.99,0.00034741,2]
[313294736,1707101432525,-3835.17487325,0.00034742,10]
[313294737,1707101432538,-279.94965974,0.00034742,8]
[313294738,1707101432551,-5302.97387147,0.00034742,10]
[313294739,1707101432575,-9165.78552508,0.00034742,10]
[313294740,1707101432601,-215.81,0.00035369,2]
[313294741,1707101432616,-469.38,0.00035639,2]
[313294742,1707101432654,-174.4,0.0003713,10]
[313294743,1707101432672,-234.47,0.00037171,2]
[313294744,1707101432690,-150.0,0.00037199,2]
[313294745,1707101432711,-400.0,0.000372,2]
[313294746,1707101432724,-250.0,0.00037315,111]
[313294747,1707101432737,-395.8888,0.00037399,2]
[313294748,1707101432770,-228.25,0.0003744,2]
[313294749,1707101432785,-3028.58,0.00037474,2]
[313294750,1707101432813,-731.3434,0.00037499,15]
[313294751,1707101432845,-215.81,0.00037633,2]
[313294752,1707101432874,-250.0,0.00038054,2]
[313294753,1707101432885,-211.25,0.00038118,2]
[313294755,1707101432899,-600.0,0.00038277,2]
[313294757,1707101432910,-150.0,0.00038356,2]
[313294759,1707101432929,-157.06296773,0.00038678,2]
[313294761,1707101432959,-211.0,0.00038866,11]
[313294763,1707101432988,-174.4,0.0003895,10]
[313294764,1707101433005,-1433.68536035,0.00039,2]
[313294767,1707101433041,-150.0,0.00039366,2]
[313294769,1707101433064,-18794.58662522,0.00039596,4]
[313294771,1707101433083,-211.25,0.00039762,2]
[313294773,1707101433097,-215.81,0.00039896,2]
[313294775,1707101433113,-3706.0245,0.00039898,2]
[313294777,1707101433133,-305.11164119,0.00039899,2]
[313294779,1707101433155,-2000.0,0.000399,4]
[313294781,1707101433174,-1612.28024761,0.000399,9]
[313294783,1707101433200,-7010.03814955,0.00039996,4]
[313294785,1707101433216,-129791.74434938,0.00039999,2]
[313294788,1707101433239,-4390.20176861,0.0004,4]
[313294789,1707101433256,-9608.82022697,0.0004,4]
[313294792,1707101433283,-1006.79455589,0.0004,4]
[313294793,1707101433326,-296.67951861,0.0004,4]
[313294794,1707101433438,-1343.49791308,0.0004,4]
[313294795,1707101433482,-7010.03814955,0.0004,4]
[313294804,1707101438028,-155.0,0.0003,2]
[313294805,1707101438051,-389.6798,0.0004,4]
[313294806,1707101438503,-1004.82167556,0.0004,4]
[313294895,1707101441050,-300.61517695,0.0004,4]
[313294949,1707101442083,-1024.57565177,0.000392,3]
[313294951,1707101442099,-549.86550808,0.0004,4]
[313294999,1707101443307,-264.48078886,0.0004,4]
[313295001,1707101446194,-429.38047636,0.00039999,4]
[313295002,1707101446231,-97.71186684,0.00039999,4]
[313295003,1707101446261,-1000.0,0.00039999,2]
[313295004,1707101446282,-1648.42813256,0.0004,4]
[313295005,1707101446323,-343.60980816,0.0004,4]
[313295006,1707101446718,-15198.51056524,0.0004,4]
[313295007,1707101446965,-1040.65669349,0.0004,4]
[313295008,1707101446989,-2824.50000151,0.0004,4]
[313295009,1707101447128,-457.29730119,0.0004,4]
[313295010,1707101447198,-2518.49053516,0.0004,4]
[313295011,1707101447213,-594.25982115,0.0004,4]
[313295012,1707101447252,-2226.82595732,0.0004,4]
[313295015,1707101649766,500.0,0.0002,2]
[313295016,1707101649802,500.0,0.0002,2]
[313295017,1707101649853,229.12071993,0.0002,2]
[313295018,1707102219946,270.87928007,0.000227,2]
[313295032,1707102632112,-155.0,0.00029999,2]
[313295033,1707102632320,-500.0,0.0003,2]
[313295034,1707102632330,-694.70392651,0.0003,2]
[313295035,1707102632339,-155.0,0.0003,2]
[313295036,1707102632348,-156.7981442,0.00034642,2]
[313295037,1707102632358,-2520.65941016,0.00034742,10]
[313295039,1707102632368,-239.93361861,0.00034742,8]
[313295040,1707102632385,-254.39824922,0.00034742,10]
[313295042,1707102632415,-2143.93667387,0.00034742,10]
[313295043,1707102632427,-2357.01812192,0.00034742,10]
[313295044,1707102632459,-215.49,0.00035968,2]
[313295045,1707102632479,-1168.31975136,0.00037,38]
[313295046,1707102632494,-874.46010717,0.00037685,2]
[313295047,1707102632539,-491.67029575,0.00037685,2]
[313295048,1707102632558,-486.28959708,0.00037685,2]
[313295050,1707102632567,-5.89649917,0.00037693,2]
[313295052,1707102632580,-302.88350083,0.00037693,2]
[313295054,1707102632590,-166.28,0.00037798,2]
[313295056,1707102632599,-499.99,0.00037798,2]
[313295058,1707102632609,-174.4,0.00037807,10]
[313295060,1707102632618,-47.56554206,0.00037812,35]
[313295063,1707102632630,-4350.66660788,0.00037812,35]
[313295070,1707102637990,-5601.76785006,0.00037812,35]
[313295071,1707102638000,-19964.730299,0.00037832,2]
[313295072,1707102638013,-973.7821564,0.00037832,2]
[313295073,1707102638038,-374.40942876,0.00037832,2]
[313295074,1707102638076,-2577.07811584,0.00037832,2]
[313295075,1707102638092,-250.0,0.00037871,111]
[313295076,1707102638108,-320.0,0.00037976,2]
[313295077,1707102638145,-500.0,0.00037989,2]
[313295078,1707102638163,-2000.0,0.00037998,2]
[313295079,1707102638177,-172.08,0.00037998,2]
[313295080,1707102638189,-250.0,0.00037998,2]
[313295081,1707102638203,-200.0,0.00038027,2]
[313295082,1707102638214,-250.0,0.00038053,2]
[313295083,1707102638223,-176.0,0.00038133,2]
[313295084,1707102638232,-150.0,0.00038174,2]
[313295085,1707102638242,-190.2,0.00038193,2]
[313295086,1707102638251,-215.49,0.00038232,2]
[313295087,1707102638260,-150.0,0.00038356,2]
[313295088,1707102638270,-157.3,0.00038423,2]
[313295089,1707102638279,-680.0,0.00038652,2]
[313295090,1707102638291,-169.84,0.000387,2]
[313295091,1707102638301,-3229.53169348,0.00038796,4]
[313295092,1707102638310,-156.7981442,0.0003883,2]
[313295093,1707102638319,-988.12932523,0.00039,2]
[313295094,1707102638337,-445.55603512,0.00039,2]
[313295095,1707102638346,-211.0,0.00039092,2]
[313295096,1707102638355,-829.47106288,0.000392,3]
[313295097,1707102638371,-306.2470405,0.000392,3]
[313295098,1707102638380,-308.78,0.00039337,2]
[313295099,1707102638393,-150.0,0.00039366,2]
[313295100,1707102638402,-1627.25578028,0.00039799,2]
[313295101,1707102638414,-440.51251972,0.00039799,2]
[313295102,1707102638424,-1037.6444,0.00039799,2]
[313295103,1707102638433,-636.4254,0.000398,2]
[313295104,1707102638443,-316.1289,0.000398,2]
[313295105,1707102638453,-1456.13681752,0.000398,9]
[313295106,1707102638468,-274.60047708,0.000398,2]
[313295107,1707102638478,-1748.2738,0.00039899,3]
[313295108,1707102638487,-4963.82231735,0.00039899,4]
[313295109,1707102638506,-41860.34008205,0.00039899,4]
[313295110,1707102638518,-8358.53025265,0.00039899,4]
[313295111,1707102638527,-4060.84107574,0.000399,2]
[313295112,1707102638539,-1558.81135487,0.000399,2]
[313295113,1707102638558,-14884.05202119,0.000399,2]
[313295114,1707102638570,-17620.22836132,0.000399,2]
[313295115,1707102638581,-47133.44507934,0.000399,2]
[313295116,1707102638593,-64314.95530428,0.000399,2]
[313295156,1707102640834,-897.0,0.000399,2]
[313295157,1707102640902,-93858.49320326,0.000399,2]
[313295158,1707102640916,-10579.0341,0.000399,2]
[313295159,1707102640926,-563.35135604,0.000399,2]
[313295160,1707102640936,-190.91405629,0.000399,2]
[313295161,1707102640946,-175.02871618,0.00039996,4]
[313295162,1707102640959,-302.52014702,0.00039996,4]
[313295163,1707102640968,-235.5313728,0.00039996,4]
[313295164,1707102640978,-3646.41727852,0.00039996,4]
[313295165,1707102640987,-207.04274963,0.00039996,4]
[313295166,1707102640998,-160.69080403,0.00039996,4]
[313295167,1707102641008,-2359.52787309,0.00039996,4]
[313295168,1707102641017,-1092.34603651,0.00039996,4]
[313295169,1707102641027,-157.31738452,0.00039996,4]
[313295170,1707102641037,-307.09463369,0.00039996,4]
[313295171,1707102641046,-155.51022726,0.00039996,4]
[313295172,1707102641055,-282.7355977,0.00039996,4]
[313295173,1707102641065,-155.70891789,0.00039996,4]
[313295174,1707102641077,-535.35874182,0.00039997,4]
[313295175,1707102641090,-1419.26339744,0.00039997,4]
[313295176,1707102641100,-516.12024107,0.00039998,4]
[313295177,1707102641112,-312.24874462,0.00039998,4]
[313295178,1707102641122,-10531.35087382,0.00039998,4]
[313295179,1707102641132,-6007.21787997,0.00039998,4]
[313295180,1707102641141,-129076.34075415,0.00039999,2]
[313295181,1707102641151,-27395.80945824,0.0004,4]
[313295182,1707102641160,-414.01043066,0.0004,35]
[313295183,1707102641169,-2500.0,0.0004,31]
[313295184,1707102641179,-255.0,0.0004,12]
[313295185,1707102641188,-3297.43432127,0.0004,4]
[313295186,1707102641198,-200.0,0.0004,2]
[313295187,1707102641207,-255.0,0.0004,12]
[313295188,1707102641220,-540.97389776,0.0004,4]
[313295189,1707102641231,-255.0,0.0004,12]
[313295190,1707102641241,-252.72062988,0.0004,4]
[313295191,1707102641251,-255.0,0.0004,12]
[313295192,1707102641263,-255.0,0.0004,12]
[313295193,1707102641272,-255.0,0.0004,12]
[313295194,1707102641281,-2000.0,0.0004,30]
[313295195,1707102641291,-255.0,0.0004,12]
[313295196,1707102641303,-150.0,0.00040375,2]
[313295197,1707102641312,-215.49,0.00040496,2]
[313295198,1707102641322,-150.0,0.00040512,2]
[313295199,1707102641331,-554.4498778,0.00040902,13]
[313295200,1707102641340,-185.20076696,0.00040902,2]
[313295201,1707102641350,-308.78,0.00040981,2]
[313295202,1707102641359,-10000.0,0.00041,2]
[313295203,1707102641368,-4821.4735813,0.00041,21]
[313295204,1707102641378,-1054.58053831,0.00041008,3]
[313295205,1707102641387,-274.60047704,0.00041033,3]
[313295206,1707102641397,-1505.0,0.000411,2]
[313295207,1707102641406,-2000.0,0.000411,2]
[313295208,1707102641415,-1000.0,0.000411,2]
[313295209,1707102641426,-500.0,0.000411,2]
[313295210,1707102641437,-1456.13681748,0.00041286,10]
[313295211,1707102641446,-150.0,0.00041384,2]
[313295212,1707102641455,-151.14314891,0.00041426,2]
[313295213,1707102641464,-160.88585138,0.00041455,2]
[313295214,1707102641474,-800.0,0.00041465,10]
[313295215,1707102641483,-200.0,0.00041466,7]
[313295216,1707102641492,-800.0,0.00041466,10]
[313295217,1707102641502,-800.0,0.00041466,10]
[313295218,1707102641512,-152.9284975,0.000417,10]
[313295219,1707102641521,-226.30200691,0.00041737,2]
[313295220,1707102641531,-156.03373825,0.00041799,4]
[313295221,1707102641540,-177.27753846,0.00041799,2]
[313295222,1707102641549,-150.0,0.000418,32]
[313295223,1707102641559,-150.0,0.000418,12]
[313295224,1707102641568,-200.0,0.000418,2]
[313295225,1707102641578,-208.2596,0.00041802,2]
[313295226,1707102641588,-7089.52206774,0.00041835,11]
[313295227,1707102641598,-28885.88856297,0.00041835,8]
[313295228,1707102641621,-697.59439217,0.00041835,8]
[313295229,1707102641749,-1015.34999995,0.00041835,8]
[313295235,1707102643221,-60273.04774021,0.00041835,8]
[313295236,1707102643242,-191.27903606,0.00041841,2]
[313295237,1707102643260,-4093.70926315,0.00041842,15]
[313295238,1707102643272,-1047.52615169,0.00041843,2]
[313295239,1707102643282,-7447.19670182,0.00041844,4]
[313295240,1707102643500,-4764.84943999,0.00041844,4]
[313295241,1707102643516,-525.51293212,0.00041844,4]
[313295249,1707102646107,-529.01938326,0.00039899,2]
[313295250,1707102646117,-4190.06319175,0.00041844,4]
[313295251,1707102646127,-4582.13931724,0.00041844,4]
[313295252,1707102646142,-302.52014702,0.00041844,4]
[313295253,1707102646160,-13498.80057388,0.00041844,4]
[313295254,1707102646191,-859.39536,0.00041844,4]
[313295255,1707102646202,-457.57599352,0.00041844,4]
[313295256,1707102646215,-242.63690938,0.00041844,4]
[313295257,1707102646224,-561.54456536,0.00041845,4]
[313295258,1707102646235,-745.81395217,0.00041845,4]
[313295259,1707102646256,-479.96318635,0.00041845,4]
[313295260,1707102646267,-1040.92958151,0.00041845,4]
[313295261,1707102646279,-280.21103288,0.00041845,4]
[313295262,1707102646299,-16802.34672906,0.00041845,4]
[313295263,1707102646310,-2972.41611703,0.00041845,4]
[313295264,1707102646322,-673.15617022,0.00041845,4]
[313295265,1707102646333,-4563.41895228,0.00041845,4]
[313295266,1707102646391,-587.2050527,0.00041845,4]
[313295267,1707102646402,-635.84286283,0.00041845,4]
[313295268,1707102646414,-4572.49301568,0.00041845,4]
[313295269,1707102646423,-1209.64822754,0.00041845,4]
[313295270,1707102646432,-1855.89253825,0.00041845,2]
[313295271,1707102646442,-1758.33286599,0.00041902,30]
[313295283,1707103832483,-191.15944048,0.00032184,4]
[313295285,1707103832541,-155.0,0.00032185,2]
[313295287,1707103832563,-2480.0,0.000322,3]
[313295289,1707103832585,-291.97703004,0.00034728,2]
[313295290,1707103832600,-2180.20860532,0.00034742,10]
[313295291,1707103832617,-457.48586157,0.00034742,8]
[313295292,1707103832633,-606.16875466,0.00034742,10]
[313295293,1707103832647,-1555.50127585,0.00034742,10]
[313295294,1707103832658,-150.0,0.00034982,3]
[313295295,1707103832697,-150.0,0.00034982,3]
[313295296,1707103832722,-852.454,0.00034983,2]
[313295297,1707103832738,-321.357,0.00034983,2]
[313295298,1707103832767,-1144.177,0.00034983,2]
[313295299,1707103832783,-343.622,0.00034983,2]
[313295300,1707103832804,-2878.811,0.00034983,2]
[313295301,1707103832829,-1127.356,0.00034983,2]
[313295302,1707103832846,-1238.876,0.00034983,2]
[313295303,1707103832866,-212.58,0.00034983,2]
[313295304,1707103832885,-161.09722205,0.00035907,2]
[313295305,1707103832898,-150.99,0.00035907,2]
[313295306,1707103832910,-499.99,0.00035907,2]
[313295307,1707103832947,-1113.29,0.00035907,2]
[313295308,1707103832975,-528.61,0.00035907,2]
[313295309,1707103832999,-230.02,0.00035928,2]
[313295310,1707103833023,-161.09722205,0.00036931,2]
[313295311,1707103833043,-150.0,0.00037,38]
[313295312,1707103833075,-299.06,0.00037664,2]
[313295313,1707103833086,-23880.0,0.00037761,2]
[313295314,1707103833112,-250.0,0.000378,2]
[313295315,1707103833133,-250.0,0.00037831,111]
[313295316,1707103833143,-1016.07709479,0.0003791,2]
[313295317,1707103833173,-158.5,0.00037918,2]
[313295318,1707103833211,-150.0,0.0003793,2]
[313295319,1707103833242,-2705.0,0.00037948,2]
[313295320,1707103833267,-161.09722205,0.00037956,2]
[313295321,1707103833288,-323.17489734,0.00038,39]
[313295322,1707103833307,-230.02,0.00038192,2]
[313295323,1707103833334,-179.12,0.00038202,2]
[313295324,1707103833363,-10000.0,0.00038351,35]
[313295325,1707103833376,-150.0,0.00038356,2]
[313295326,1707103833402,-161.09722205,0.0003898,2]
[313295327,1707103833426,-1106.30518892,0.00039,30]
[313295328,1707103833438,-286.17,0.00039059,2]
[313295329,1707103833470,-299.06,0.00039307,2]
[313295330,1707103833495,-150.0,0.00039366,2]
[313295331,1707103833530,-211.0,0.00039577,2]
[313295332,1707103833556,-255.0,0.0004,12]
[313295333,1707103833574,-161.09722205,0.00040004,2]
[313295334,1707103833599,-150.0,0.00040375,2]
[313295335,1707103833613,-1532.0446,0.00040451,2]
[313295336,1707103833638,-219.68038165,0.00040451,2]
[313295337,1707103833656,-1226.86356576,0.00040451,9]
[313295338,1707103833676,-230.02,0.00040456,2]
[313295339,1707103833688,-1000.0,0.00040483,2]
[313295340,1707103833698,-111058.8153291,0.00040551,2]
[313295341,1707103833721,-450.0,0.00040551,2]
[313295343,1707103833789,-321.16565532,0.00040551,2]
[313295345,1707103833848,-1003.30335493,0.00040551,2]
[313295346,1707103833871,-433.59794111,0.00040551,2]
[313295348,1707103833912,-2192.13108024,0.00040551,2]
[313295351,1707103833958,-594.5274152,0.00040551,2]
[313295353,1707103833992,-2657.95491868,0.00040551,2]
[313295355,1707103834022,-380.49190557,0.00040551,2]
[313295390,1707103838440,-1149.479,0.00034983,2]
[313295391,1707103838454,-1045.758,0.00034983,2]
[313295392,1707103838468,-958.27442666,0.00040551,2]
[313295393,1707103838657,-474.27476,0.00040551,2]
[313295394,1707103838998,-2065.26775631,0.00040551,2]
[313295395,1707103839019,-238.383,0.00034983,2]
[313295396,1707103839035,-42290.8131759,0.00040551,2]
[313295397,1707103839082,-1083.24875629,0.00040551,2]
[313295398,1707103839104,-970.30246952,0.00040551,2]
[313295399,1707103839157,-9837.0004067,0.00040551,2]
[313295400,1707103839195,-550.13251355,0.00040551,2]
[313295401,1707103839235,-364.13822102,0.00034983,2]
[313295402,1707103839267,-65.85677898,0.00034983,2]
[313295403,1707103839293,-59768.19429078,0.00040551,2]
[313295404,1707103839347,-2414.37668706,0.00040551,2]
[313295405,1707103839379,-14354.23770363,0.00040551,2]
[313295406,1707103839414,-1046.11,0.00040551,2]
[313295407,1707103839439,-166.28,0.00040759,2]
[313295408,1707103839458,-299.06,0.00040951,2]
[313295410,1707103839486,-10000.0,0.00041,2]
[313295412,1707103839518,-2000.0,0.00041,30]
[313295413,1707103839570,-161.09722205,0.00041028,2]
[313295415,1707103839605,-1040.18785676,0.00041064,3]
[313295417,1707103839634,-1000.0,0.000411,2]
[313295419,1707103839654,-2000.0,0.000411,2]
[313295421,1707103839671,-150.0,0.00041384,2]
[313295423,1707103839685,-151.14314891,0.00041482,2]
[313295425,1707103839702,-200.0,0.00041488,7]
[313295426,1707103839716,-200.0,0.00041509,7]
[313295429,1707103839750,-800.0,0.00041509,10]
[313295431,1707103839780,-800.0,0.0004151,10]
[313295433,1707103839812,-219.68038163,0.00041612,3]
[313295435,1707103839829,-180.0,0.0004164,2]
[313295437,1707103839850,-255.0,0.00041692,12]
[313295438,1707103839875,-255.0,0.00041692,12]
[313295440,1707103839896,-255.0,0.00041692,12]
[313295442,1707103839906,-255.0,0.00041692,12]
[313295445,1707103839923,-255.0,0.00041692,12]
[313295448,1707103839933,-517.48655266,0.00041744,14]
[313295450,1707103839958,-563.35135604,0.00041744,5]
[313295452,1707103839986,-210.80757545,0.00041744,2]
[313295455,1707103840007,-150.0,0.000418,12]
[313295456,1707103840033,-631.59682591,0.000418,30]
[313295458,1707103840057,-693.56131897,0.00041801,2]
[313295460,1707103840078,-314.14524973,0.00041801,17]
[313295462,1707103840096,-27927.32682605,0.0004181,120]
[313295503,1707103841061,-15502.98157847,0.0004181,120]
[313295541,1707103841914,-117686.85903163,0.0004181,120]
[313295543,1707103841945,-9496.0,0.0004181,120]
[313295545,1707103841972,-719.26763437,0.0004181,120]
[313295551,1707103842089,-700.43927189,0.0004181,120]
[313295553,1707103842114,-3526.1503252,0.0004181,120]
[313295555,1707103842139,-816.6477242,0.0004181,120]
[313295559,1707103842224,-4387.53381635,0.0004181,120]
[313295561,1707103842252,-25749.26351173,0.0004181,120]
[313295563,1707103842268,-1477.20239095,0.0004181,120]
[313295565,1707103842283,-5979.3229365,0.0004181,120]
[313295575,1707103842494,-2010.14388192,0.0004181,120]
[313295578,1707103842512,-408.43045605,0.0004181,120]
[313295580,1707103842528,-924.2744322,0.0004181,120]
[313295582,1707103842550,-264.37391524,0.0004181,120]